fUST/lending_fUST_20250222
["ID","MTS","AMOUNT","RATE_DAILY","PERIOD"]
[353995850,1740177038926,-500.0,0.00014273,2]
[353995851,1740177038935,-6424.82,0.00014273,2]
[353995852,1740177038944,-500.0,0.00014273,2]
[353995853,1740177038954,-579.82,0.00014273,2]
[353995854,1740177038963,-673.37,0.00014273,2]
[353995855,1740177038972,-2668.84,0.00014273,2]
[353995856,1740177038982,-500.0,0.00014273,2]
[353995857,1740177038991,-500.0,0.00014273,2]
[353995858,1740177039002,-1054.04,0.00014273,2]
[353995859,1740177039013,-831.93,0.00014273,2]
[353995860,1740177039022,-500.0,0.00014273,2]
[353995861,1740177039031,-775.86,0.00014273,2]
[353995862,1740177039043,-265.8,0.00014273,2]
[353995863,1740177039052,-545.32,0.00014273,2]
[353995864,1740177039064,-575.67,0.00014273,2]
[353995865,1740177039073,-1833.67,0.00014273,2]
[353995866,1740177039085,-500.0,0.00014273,2]
[353995867,1740177039095,-500.0,0.00014273,2]
[353995868,1740177039105,-500.0,0.00014273,2]
[353995869,1740177039116,-500.0,0.00014273,2]
[353995870,1740177039126,-736.31,0.00014273,2]
[353995871,1740177039137,-785.86,0.00014273,2]
[353995872,1740177039147,-1727.65,0.00014273,2]
[353995873,1740177039157,-500.0,0.00014292,2]
[353995874,1740177039167,-7438.69753278,0.00014293,2]
[353995875,1740177039178,-151.0,0.000143,2]
[353995876,1740177039187,-151.0,0.000143,2]
[353995877,1740177039198,-3477.23,0.00014356,2]
[353995878,1740177039207,-500.0,0.00014356,2]
[353995879,1740177039217,-6424.82,0.00014356,2]
[353995880,1740177039227,-443.45,0.00014356,2]
[353995881,1740177039237,-579.82,0.00014356,2]
[353995882,1740177039246,-673.37,0.00014356,2]
[353995883,1740177039255,-2668.84,0.00014356,2]
[353995884,1740177039264,-500.0,0.00014356,2]
[353995885,1740177039273,-500.0,0.00014356,2]
[353995886,1740177039283,-1054.04,0.00014356,2]
[353995887,1740177039292,-831.93,0.00014356,2]
[353995888,1740177039301,-500.0,0.00014356,2]
[353995889,1740177039316,-775.86,0.00014356,2]
[353995890,1740177039326,-545.32,0.00014356,2]
[353995891,1740177039339,-575.67,0.00014356,2]
[353995892,1740177039349,-1833.67,0.00014356,2]
[353995893,1740177039358,-500.0,0.00014356,2]
[353995894,1740177039369,-500.0,0.00014356,2]
[353995895,1740177039379,-500.0,0.00014356,2]
[353995896,1740177039388,-736.31,0.00014356,2]
[353995897,1740177039398,-785.86,0.00014356,2]
[353995898,1740177039408,-1727.65,0.00014356,2]
[353995899,1740177039417,-151.0,0.000144,2]
[353995900,1740177039427,-151.0,0.000144,2]
[353995901,1740177039437,-500.0,0.00014437,2]
[353995902,1740177039446,-3477.23,0.00014438,2]
[353995903,1740177039455,-500.0,0.00014438,2]
[353995904,1740177039465,-6424.82,0.00014438,2]
[353995905,1740177039475,-579.82,0.00014438,2]
[353995906,1740177039485,-673.37,0.00014438,2]
[353995907,1740177039494,-2668.84,0.00014438,2]
[353995908,1740177039504,-172.25,0.00014438,2]
[353995909,1740177039514,-450.92,0.00014438,2]
[353995910,1740177039525,-1054.04,0.00014438,2]
[353995911,1740177039534,-831.93,0.00014438,2]
[353995912,1740177039544,-500.0,0.00014438,2]
[353995913,1740177039556,-775.86,0.00014438,2]
[353995914,1740177039566,-545.32,0.00014438,2]
[353995915,1740177039575,-575.67,0.00014438,2]
[353995916,1740177039585,-1833.67,0.00014438,2]
[353995917,1740177039594,-500.0,0.00014438,2]
[353995918,1740177039604,-500.0,0.00014438,2]
[353995919,1740177039613,-500.0,0.00014438,2]
[353995920,1740177039622,-736.31,0.00014438,2]
[353995921,1740177039632,-785.86,0.00014438,2]
[353995922,1740177039642,-1727.65,0.00014438,2]
[353995923,1740177039651,-236.59682932,0.000145,2]
[353995924,1740177039661,-151.0,0.000145,2]
[353995925,1740177039671,-151.0,0.000145,2]
[353995926,1740177039681,-3477.23,0.0001452,2]
[353995927,1740177039690,-500.0,0.0001452,2]
[353995928,1740177039699,-6424.82,0.0001452,2]
[353995929,1740177039709,-579.82,0.0001452,2]
[353995930,1740177039718,-673.37,0.0001452,2]
[353995931,1740177039728,-2668.84,0.0001452,2]
[353995932,1740177039738,-1054.04,0.0001452,2]
[353995933,1740177039748,-831.93,0.0001452,2]
[353995934,1740177039757,-500.0,0.0001452,2]
[353995935,1740177039766,-775.86,0.0001452,2]
[353995936,1740177039775,-545.32,0.0001452,2]
[353995937,1740177039785,-575.67,0.0001452,2]
[353995939,1740177039795,-1833.67,0.0001452,2]
[353995941,1740177039806,-500.0,0.0001452,2]
[353995942,1740177039815,-557.59,0.0001452,2]
[353995944,1740177039824,-500.0,0.0001452,2]
[353995946,1740177039833,-736.31,0.0001452,2]
[353995948,1740177039842,-785.86,0.0001452,2]
[353995950,1740177039851,-1727.65,0.0001452,2]
[353995951,1740177039861,-244.994,0.00014578,2]
[353995952,1740177039871,-2195.8262246,0.00014601,2]
[353995953,1740177039881,-500.0,0.00014601,2]
[353995954,1740177039891,-3477.23,0.00014602,2]
[353995955,1740177039900,-500.0,0.00014602,2]
[353995956,1740177039910,-6424.82,0.00014602,2]
[353995957,1740177039919,-579.82,0.00014602,2]
[353995959,1740177039928,-673.37,0.00014602,2]
[353995960,1740177039938,-2668.84,0.00014602,2]
[353995961,1740177039947,-1054.04,0.00014602,2]
[353995962,1740177039957,-831.93,0.00014602,2]
[353995963,1740177039966,-500.0,0.00014602,2]
[353995964,1740177039976,-775.86,0.00014602,2]
[353995965,1740177039985,-545.32,0.00014602,2]
[353995966,1740177039996,-575.67,0.00014602,2]
[353995967,1740177040008,-1833.67,0.00014602,2]
[353995968,1740177040018,-500.0,0.00014602,2]
[353995969,1740177040027,-500.0,0.00014602,2]
[353995970,1740177040038,-736.31,0.00014602,2]
[353995971,1740177040047,-300.982373,0.00014602,2]
[353995972,1740177040063,-484.877627,0.00014602,2]
[353995973,1740177040166,-660.49834896,0.00014602,2]
[353995974,1740177040179,-1067.15165104,0.00014602,2]
[353995975,1740177040189,-500.0,0.00014683,2]
[353995976,1740177040199,-3477.23,0.00014684,2]
[353995977,1740177040208,-500.0,0.00014684,2]
[353995978,1740177040217,-6424.82,0.00014684,2]
[353995979,1740177040227,-579.82,0.00014684,2]
[353995980,1740177040236,-673.37,0.00014684,2]
[353995981,1740177040245,-2668.84,0.00014684,2]
[353995982,1740177040254,-1054.04,0.00014684,2]
[353995983,1740177040264,-199.357153,0.00014684,2]
[353995984,1740177040273,-151.0,0.00014684,2]
[353995985,1740177040283,-199.357153,0.00014684,2]
[353995986,1740177040292,-151.0,0.00014684,2]
[353995987,1740177040302,-831.93,0.00014684,2]
[353995988,1740177040313,-500.0,0.00014684,2]
[353995989,1740177040322,-775.86,0.00014684,2]
[353995990,1740177040331,-545.32,0.00014684,2]
[353995991,1740177040341,-575.67,0.00014684,2]
[353995992,1740177040350,-1833.67,0.00014684,2]
[353995993,1740177040360,-500.0,0.00014684,2]
[353995994,1740177040369,-306.92,0.00014684,2]
[353995995,1740177040379,-736.31,0.00014684,2]
[353995996,1740177040388,-785.86,0.00014684,2]
[353995997,1740177040398,-1727.65,0.00014684,2]
[353995998,1740177040407,-151.0,0.000147,2]
[353995999,1740177040417,-151.0,0.000147,2]
[353996000,1740177040426,-151.0,0.000147,2]
[353996001,1740177040436,-1437.24944605,0.00014752,2]
[353996015,1740177041874,-500.0,0.00013698,2]
[353996017,1740177041885,-500.0,0.00013698,2]
[353996019,1740177041900,-500.0,0.00013698,2]
[353996021,1740177041910,-500.0,0.00013698,2]
[353996023,1740177041919,-2944.71,0.00013698,2]
[353996025,1740177041929,-8443.86167863,0.00014752,2]
[353996027,1740177041939,-3477.23,0.00014767,2]
[353996029,1740177041948,-500.0,0.00014767,2]
[353996031,1740177041961,-579.82,0.00014767,2]
[353996033,1740177041970,-673.37,0.00014767,2]
[353996035,1740177041979,-2668.84,0.00014767,2]
[353996037,1740177041989,-1054.04,0.00014767,2]
[353996038,1740177042002,-831.93,0.00014767,2]
[353996039,1740177042011,-500.0,0.00014767,2]
[353996040,1740177042020,-775.86,0.00014767,2]
[353996041,1740177042029,-545.32,0.00014767,2]
[353996042,1740177042040,-575.67,0.00014767,2]
[353996043,1740177042050,-1833.67,0.00014767,2]
[353996044,1740177042060,-500.0,0.00014767,2]
[353996045,1740177042070,-736.31,0.00014767,2]
[353996046,1740177042079,-785.86,0.00014767,2]
[353996047,1740177042089,-1727.65,0.00014767,2]
[353996048,1740177042098,-500.0,0.00014772,2]
[353996049,1740177042107,-420.0,0.00014796,2]
[353996050,1740177042116,-151.0,0.000148,2]
[353996051,1740177042126,-151.0,0.000148,2]
[353996052,1740177042135,-151.0,0.000148,2]
[353996053,1740177042145,-236.59682932,0.000148,2]
[353996054,1740177042154,-1400.35434212,0.000148,2]
[353996055,1740177042163,-605.68784142,0.000148,2]
[353996056,1740177042172,-605.68784142,0.000148,2]
[353996057,1740177042181,-605.68784142,0.000148,2]
[353996058,1740177042191,-605.68784142,0.000148,2]
[353996059,1740177042200,-605.68784142,0.000148,2]
[353996060,1740177042209,-605.68784142,0.000148,2]
[353996061,1740177042218,-605.68784142,0.000148,2]
[353996062,1740177042227,-605.68784142,0.000148,2]
[353996063,1740177042236,-605.68784142,0.000148,2]
[353996064,1740177042245,-605.68784142,0.000148,2]
[353996065,1740177042254,-605.68784142,0.000148,2]
[353996066,1740177042263,-605.68784142,0.000148,2]
[353996067,1740177042272,-605.68784142,0.000148,2]
[353996068,1740177042281,-605.68784142,0.000148,2]
[353996069,1740177042289,-605.68784142,0.000148,2]
[353996070,1740177042298,-605.68784142,0.000148,2]
[353996071,1740177042308,-605.68784142,0.000148,2]
[353996072,1740177042317,-605.68784142,0.000148,2]
[353996073,1740177042326,-605.68784142,0.000148,2]
[353996074,1740177042335,-605.68,0.000148,2]
[353996075,1740177042344,-1413.27162999,0.000148,2]
[353996076,1740177042355,-1413.27162999,0.000148,2]
[353996077,1740177042364,-1413.27162999,0.000148,2]
[353996078,1740177042373,-1413.27162999,0.000148,2]
[353996079,1740177042382,-1413.27162999,0.000148,2]
[353996080,1740177042391,-1413.27162999,0.000148,2]
[353996081,1740177042401,-1413.27162999,0.000148,2]
[353996082,1740177042410,-1413.27162999,0.000148,2]
[353996083,1740177042419,-1413.27162999,0.000148,2]
[353996084,1740177042428,-1413.27162999,0.000148,2]
[353996085,1740177042437,-1413.27162999,0.000148,2]
[353996086,1740177042446,-1413.27162999,0.000148,2]
[353996087,1740177042455,-1413.27162999,0.000148,2]
[353996088,1740177042464,-1413.27162999,0.000148,2]
[353996089,1740177042473,-1413.27162999,0.000148,2]
[353996090,1740177042482,-1413.27162999,0.000148,2]
[353996091,1740177042491,-1413.27162999,0.000148,2]
[353996092,1740177042499,-1413.27162999,0.000148,2]
[353996093,1740177042508,-1413.27162999,0.000148,2]
[353996094,1740177042517,-1413.27,0.000148,2]
[353996095,1740177042526,-266.88030216,0.000148,2]
[353996096,1740177042535,-266.88030216,0.000148,2]
[353996097,1740177042544,-266.88030216,0.000148,2]
[353996098,1740177042554,-266.88030216,0.000148,2]
[353996099,1740177042564,-266.88030216,0.000148,2]
[353996100,1740177042572,-266.88030216,0.000148,2]
[353996101,1740177042582,-266.88030216,0.000148,2]
[353996102,1740177042592,-266.88030216,0.000148,2]
[353996103,1740177042602,-266.88030216,0.000148,2]
[353996104,1740177042611,-7940.65699248,0.000148,2]
[353996105,1740177042621,-266.88030216,0.000148,2]
[353996106,1740177042631,-266.88030216,0.000148,2]
[353996107,1740177042640,-266.88030216,0.000148,2]
[353996108,1740177042649,-266.88030216,0.000148,2]
[353996109,1740177042658,-266.88030216,0.000148,2]
[353996110,1740177042667,-266.88030216,0.000148,2]
[353996111,1740177042676,-266.88030216,0.000148,2]
[353996112,1740177042685,-266.88030216,0.000148,2]
[353996113,1740177042694,-266.88030216,0.000148,2]
[353996114,1740177042704,-266.88030216,0.000148,2]
[353996115,1740177042713,-266.88,0.000148,2]
[353996116,1740177042723,-622.72070503,0.000148,2]
[353996117,1740177042732,-622.72070503,0.000148,2]
[353996118,1740177042741,-622.72070503,0.000148,2]
[353996119,1740177042750,-622.72070503,0.000148,2]
[353996120,1740177042759,-622.72070503,0.000148,2]
[353996121,1740177042768,-622.72070503,0.000148,2]
[353996122,1740177042777,-622.72070503,0.000148,2]
[353996123,1740177042787,-622.72070503,0.000148,2]
[353996124,1740177042795,-622.72070503,0.000148,2]
[353996125,1740177042806,-622.72070503,0.000148,2]
[353996126,1740177042814,-622.72070503,0.000148,2]
[353996127,1740177042823,-622.72070503,0.000148,2]
[353996128,1740177042833,-622.72070503,0.000148,2]
[353996129,1740177042842,-622.72070503,0.000148,2]
[353996130,1740177042851,-622.72070503,0.000148,2]
[353996131,1740177042860,-622.72070503,0.000148,2]
[353996132,1740177042869,-622.72070503,0.000148,2]
[353996133,1740177042878,-622.72070503,0.000148,2]
[353996134,1740177042888,-622.72070503,0.000148,2]
[353996136,1740177042897,-622.72,0.000148,2]
[353996138,1740177042906,-156.88816086,0.000148,2]
[353996140,1740177042915,-156.88816086,0.000148,2]
[353996141,1740177042924,-156.88816086,0.000148,2]
[353996142,1740177042933,-156.88816086,0.000148,2]
[353996143,1740177042942,-156.88816086,0.000148,2]
[353996144,1740177042951,-156.88816086,0.000148,2]
[353996145,1740177042960,-156.88816086,0.000148,2]
[353996146,1740177042969,-156.88816086,0.000148,2]
[353996148,1740177042978,-156.88816086,0.000148,2]
[353996153,1740177042988,-156.88816086,0.000148,2]
[353996157,1740177042997,-156.88816086,0.000148,2]
[353996161,1740177043009,-156.88816086,0.000148,2]
[353996164,1740177043018,-156.88816086,0.000148,2]
[353996167,1740177043027,-156.88816086,0.000148,2]
[353996169,1740177043036,-156.88816086,0.000148,2]
[353996172,1740177043047,-201.49,0.00014848,2]
[353996173,1740177043057,-3477.23,0.00014849,2]
[353996174,1740177043066,-168.02201952,0.00014849,2]
[353996175,1740177043076,-579.82,0.00014849,2]
[353996176,1740177043086,-673.37,0.00014849,2]
[353996177,1740177043095,-2668.84,0.00014849,2]
[353996178,1740177043104,-1054.04,0.00014849,2]
[353996179,1740177043113,-831.93,0.00014849,2]
[353996180,1740177043122,-500.0,0.00014849,2]
[353996181,1740177043132,-775.86,0.00014849,2]
[353996182,1740177043142,-545.32,0.00014849,2]
[353996183,1740177043151,-575.67,0.00014849,2]
[353996184,1740177043160,-1833.67,0.00014849,2]
[353996185,1740177043169,-500.0,0.00014849,2]
[353996186,1740177043178,-736.31,0.00014849,2]
[353996187,1740177043188,-785.86,0.00014849,2]
[353996188,1740177043197,-1727.65,0.00014849,2]
[353996190,1740177043206,-500.0,0.00014873,2]
[353996192,1740177043216,-500.0,0.00014873,2]
[353996193,1740177043227,-500.0,0.00014873,2]
[353996195,1740177043237,-500.0,0.00014873,2]
[353996197,1740177043247,-500.0,0.00014873,2]
[353996199,1740177043256,-500.07915267,0.00014873,2]
[353996201,1740177043265,-500.0,0.00014873,2]
[353996203,1740177043273,-500.38433033,0.00014873,2]
[353996205,1740177043281,-500.0,0.00014873,2]
[353996207,1740177043291,-500.17400097,0.00014873,2]
[353996209,1740177043300,-500.0,0.00014873,2]
[353996211,1740177043310,-501.56720477,0.0001489,2]
[353996213,1740177043319,-151.0,0.00014898,2]
[353996215,1740177043328,-232.63584415,0.00014899,2]
[353996217,1740177043338,-246.87216239,0.00014899,2]
[353996220,1740177043348,-500.0,0.00014899,2]
[353996222,1740177043357,-500.0,0.00014899,2]
[353996224,1740177043366,-500.0,0.00014899,2]
[353996226,1740177043375,-500.0,0.00014899,2]
[353996228,1740177043384,-421.23961038,0.00014899,2]
[353996230,1740177043393,-18785.57210896,0.000149,5]
[353996232,1740177043403,-3050.75898371,0.000149,5]
[353996234,1740177043412,-941279.2360237,0.000149,5]
[353996326,1740177044341,-8143.16768281,0.000149,5]
[353996336,1740177044422,-2944.71,0.0001378,2]
[353996338,1740177044431,-2486.64493663,0.00013863,2]
[353997065,1740177051499,-500.0,0.00013698,2]
[353997067,1740177051508,-458.06506337,0.00013863,2]
[353997069,1740177051518,-2944.71,0.00013945,2]
[353997072,1740177051527,-2944.71,0.00014027,2]
[353997073,1740177051536,-2944.71,0.00014109,2]
[353997075,1740177051545,-2944.71,0.00014191,2]
[353997077,1740177051556,-2944.71,0.00014273,2]
[353997079,1740177051567,-2944.71,0.00014356,2]
[353997081,1740177051576,-2944.71,0.00014438,2]
[353997083,1740177051585,-2944.71,0.0001452,2]
[353997085,1740177051594,-2944.71,0.00014602,2]
[353997087,1740177051604,-2944.71,0.00014684,2]
[353997089,1740177051613,-2944.71,0.00014767,2]
[353997091,1740177051621,-156.88816086,0.000148,2]
[353997093,1740177051630,-156.88816086,0.000148,2]
[353997095,1740177051639,-156.88816086,0.000148,2]
[353997097,1740177051648,-156.88,0.000148,2]
[353997099,1740177051658,-347.76875656,0.000148,2]
[353997101,1740177051667,-347.76875656,0.000148,2]
[353997103,1740177051676,-347.76875656,0.000148,2]
[353997105,1740177051685,-347.76875656,0.000148,2]
[353997107,1740177051694,-347.76875656,0.000148,2]
[353997109,1740177051704,-347.76875656,0.000148,2]
[353997111,1740177051712,-347.76875656,0.000148,2]
[353997113,1740177051722,-347.76875656,0.000148,2]
[353997115,1740177051731,-5049.80913173,0.000149,5]
[353997123,1740177051786,-695.44042931,0.000149,5]
[353997125,1740177051797,-3066.84171807,0.000149,5]
[353997127,1740177051808,-7990.19999997,0.000149,5]
[353998709,1740177549140,-150.0,0.00010959,2]
[353998710,1740177550774,-62.19,0.00010959,2]
[353998711,1740177559740,-150.0,0.00010959,2]
[353998712,1740177564272,-26.82,0.00010959,2]
[353998713,1740177570099,-150.0,0.00010959,2]
[353998714,1740177571858,-150.0,0.00010959,2]
[353998715,1740177575936,-150.0,0.00010959,2]
[353998716,1740177578562,-150.0,0.00010959,2]
[353998718,1740177652660,-150.0,0.00010959,2]
[353998719,1740177654308,-134.14,0.00010959,2]
[353998720,1740177930135,-5312.29386998,0.00012639,2]
[353998721,1740177930158,-24900.0,0.00012739,2]
[353998722,1740177930180,-168.0715141,0.00013573,2]
[353998723,1740177930202,-500.0,0.00013673,2]
[353998724,1740177930223,-500.0,0.00013673,2]
[353998725,1740177930243,-649.55008775,0.00013673,2]
[353998726,1740177930265,-500.0,0.00013673,2]
[353998727,1740177930286,-160.11610028,0.00013673,2]
[353998728,1740177930308,-500.0,0.00013673,2]
[353998729,1740177930335,-500.0,0.00013673,2]
[353998730,1740177930357,-500.0,0.00013673,2]
[353998731,1740177930378,-500.0,0.00013673,2]
[353998732,1740177930399,-501.2087568,0.00013673,2]
[353998733,1740177930420,-500.0,0.00013673,2]
[353998734,1740177930440,-500.0,0.00013673,2]
[353998735,1740177930460,-500.0,0.00013673,2]
[353998736,1740177930481,-500.0,0.00013673,2]
[353998737,1740177930500,-1625.04405114,0.00013673,2]
[353998738,1740177930521,-185.35382402,0.00013678,2]
[353998739,1740177930541,-151.0,0.0001369,2]
[353998740,1740177930561,-253.52390726,0.00013697,2]
[353998741,1740177930583,-500.0,0.00013697,2]
[353998742,1740177930603,-500.0,0.00013697,2]
[353998743,1740177930624,-500.0,0.00013697,2]
[353998744,1740177930644,-500.0,0.00013697,2]
[353998745,1740177930666,-500.0,0.00013697,2]
[353998746,1740177930688,-500.0,0.00013697,2]
[353998747,1740177930710,-500.0,0.00013697,2]
[353998748,1740177930730,-639.64307519,0.00013697,2]
[353998749,1740177930751,-500.0,0.00013697,2]
[353998750,1740177930771,-500.0,0.00013697,2]
[353998751,1740177930792,-500.0,0.00013697,2]
[353998752,1740177930814,-500.0,0.00013697,2]
[353998753,1740177930836,-500.0,0.00013697,2]
[353998754,1740177930857,-500.0,0.00013697,2]
[353998755,1740177930876,-265.60437942,0.00013697,2]
[353998756,1740177930899,-500.0,0.00013697,2]
[353998757,1740177930921,-500.0,0.00013697,2]
[353998758,1740177930943,-500.0,0.00013697,2]
[353998759,1740177930965,-500.0,0.00013697,2]
[353998760,1740177930986,-500.0,0.00013697,2]
[353998761,1740177931008,-500.0,0.00013697,2]
[353998762,1740177931030,-500.0,0.00013697,2]
[353998763,1740177931052,-500.0,0.00013697,2]
[353998764,1740177931074,-500.0,0.00013697,2]
[353998765,1740177931096,-500.0,0.00013697,2]
[353998766,1740177931118,-285.14497895,0.00013697,2]
[353998767,1740177931140,-500.0,0.00013697,2]
[353998768,1740177931162,-500.0,0.00013697,2]
[353998769,1740177931183,-500.0,0.00013697,2]
[353998770,1740177931206,-500.0,0.00013697,2]
[353998771,1740177931227,-500.0,0.00013697,2]
[353998772,1740177931249,-517.28147057,0.00013697,2]
[353998773,1740177931270,-500.0,0.00013697,2]
[353998774,1740177931292,-500.0,0.00013697,2]
[353998775,1740177931319,-500.0,0.00013697,2]
[353998776,1740177931341,-500.0,0.00013697,2]
[353998777,1740177931364,-500.0,0.00013697,2]
[353998778,1740177931386,-500.0,0.00013697,2]
[353998779,1740177931409,-500.0,0.00013697,2]
[353998780,1740177931428,-500.0,0.00013698,2]
[353998781,1740177931450,-490.65712366,0.00013698,2]
[353998782,1740177931470,-500.0,0.00013698,2]
[353998783,1740177931490,-500.0,0.00013698,2]
[353998784,1740177931512,-570.31093886,0.00013698,2]
[353998785,1740177931532,-500.0,0.00013698,2]
[353998786,1740177931551,-500.0,0.00013698,2]
[353998787,1740177931570,-500.0,0.00013698,2]
[353998788,1740177931590,-500.0,0.00013698,2]
[353998789,1740177931609,-500.0,0.00013698,2]
[353998790,1740177931629,-500.0,0.00013698,2]
[353998791,1740177931648,-500.0,0.00013698,2]
[353998792,1740177931667,-500.0,0.00013698,2]
[353998793,1740177931687,-500.0,0.00013698,2]
[353998794,1740177931706,-500.0,0.00013698,2]
[353998795,1740177931725,-520.56735,0.00013698,2]
[353998796,1740177931745,-528.105748,0.00013698,2]
[353998797,1740177931763,-500.0,0.00013698,2]
[353998798,1740177931782,-500.0,0.00013698,2]
[353998799,1740177931802,-500.0,0.00013698,2]
[353998800,1740177931821,-500.0,0.00013698,2]
[353998801,1740177931841,-301.83971852,0.00013698,2]
[353998802,1740177931862,-500.0,0.00013698,2]
[353998803,1740177931886,-501.68634764,0.00013698,2]
[353998804,1740177931907,-500.0,0.00013698,2]
[353998805,1740177931927,-500.8498799,0.00013698,2]
[353998806,1740177931946,-500.0,0.00013698,2]
[353998807,1740177931965,-500.0,0.00013698,2]
[353998808,1740177931985,-500.0,0.00013698,2]
[353998809,1740177932005,-500.0,0.00013698,2]
[353998810,1740177932025,-500.0,0.00013698,2]
[353998811,1740177932045,-500.0,0.00013698,2]
[353998812,1740177932162,-500.4240586,0.00013698,2]
[353998813,1740177932184,-500.0,0.00013698,2]
[353998814,1740177932205,-500.0,0.00013698,2]
[353998815,1740177932225,-500.0,0.00013698,2]
[353998816,1740177932246,-500.0,0.00013698,2]
[353998817,1740177932266,-500.0,0.00013698,2]
[353998818,1740177932286,-500.0,0.00013698,2]
[353998819,1740177932306,-500.0,0.00013698,2]
[353998820,1740177932329,-500.0,0.00013698,2]
[353998821,1740177932350,-500.0,0.00013698,2]
[353998822,1740177932372,-500.0,0.00013698,2]
[353998823,1740177932392,-219.63500113,0.00013698,2]
[353998824,1740177932415,-500.0,0.00013698,2]
[353998825,1740177932435,-500.0,0.00013698,2]
[353998826,1740177932454,-500.0,0.00013698,2]
[353998827,1740177932473,-500.0,0.00013698,2]
[353998828,1740177932493,-500.0,0.00013698,2]
[353998829,1740177932512,-500.0,0.00013698,2]
[353998830,1740177932531,-580.51879037,0.00013698,2]
[353998831,1740177932551,-500.0,0.00013698,2]
[353998832,1740177932571,-500.0,0.00013698,2]
[353998833,1740177932590,-500.0,0.00013698,2]
[353998834,1740177932609,-500.0,0.00013698,2]
[353998835,1740177932628,-500.0,0.00013698,2]
[353998836,1740177932648,-500.0,0.00013698,2]
[353998837,1740177932666,-500.0,0.00013698,2]
[353998838,1740177932685,-500.0,0.00013698,2]
[353998839,1740177932705,-500.0,0.00013698,2]
[353998840,1740177932724,-500.0,0.00013698,2]
[353998841,1740177932743,-500.0,0.00013698,2]
[353998842,1740177932764,-500.0,0.00013698,2]
[353998843,1740177932783,-542.38774332,0.00013698,2]
[353998844,1740177932802,-500.0,0.00013698,2]
[353998845,1740177932822,-500.0,0.00013698,2]
[353998846,1740177932842,-500.0,0.00013698,2]
[353998847,1740177932862,-500.25049463,0.00013698,2]
[353998848,1740177932881,-583.85632625,0.00013698,2]
[353998849,1740177932902,-500.0,0.00013698,2]
[353998850,1740177932922,-525.68072251,0.00013698,2]
[353998851,1740177932941,-189.5323073,0.00013698,2]
[353998852,1740177932960,-500.0,0.00013698,2]
[353998853,1740177932979,-500.0,0.00013698,2]
[353998854,1740177932998,-500.0,0.00013698,2]
[353998855,1740177933018,-500.0,0.00013698,2]
[353998856,1740177933039,-500.0,0.00013698,2]
[353998857,1740177933060,-500.0,0.00013698,2]
[353998858,1740177933082,-500.0,0.00013698,2]
[353998859,1740177933104,-216.13921453,0.00013698,2]
[353998860,1740177933125,-500.0,0.00013698,2]
[353998861,1740177933146,-500.0,0.00013698,2]
[353998862,1740177933168,-500.0,0.00013698,2]
[353998863,1740177933189,-501.6429409,0.00013698,2]
[353998864,1740177933211,-500.0,0.00013698,2]
[353998865,1740177933233,-500.0,0.00013698,2]
[353998866,1740177933255,-500.0,0.00013698,2]
[353998867,1740177933277,-500.0,0.00013698,2]